{"text_format":"3","workbook":"xlsx","n_sheets":4,"sheets":["Feuil1","Base","Résultat","Impression"],"not_rendered":{"charts":2,"macros":1,"defined_names":5},"read":"whole","date_system":"1900"}

{"sheet":"Feuil1","index":0,"n_rows":12,"n_cols":13,"rows_kept":12}
["Client","Date","Oppération","Parcelle","Culture","Surface","Produit","Observation","Campagne"]
["Florian","15/12/2014","Moisson","Sous la route",{"$f":"VLOOKUP(Tableau1[Parcelle],Tableau7[[Parcelles]:[Campagne]],3,0)","v":"Blé"},{"$f":"VLOOKUP(Tableau1[Parcelle],Tableau7[[Parcelles]:[Campagne]],2,0)","v":5.35},"Urée 46%","","2013/2014"]
["Florian","16/12/2014","Pulvérisation","La plaine",{"$f":"VLOOKUP(Tableau1[Parcelle],Tableau7[[Parcelles]:[Campagne]],3,0)","v":"Tournesol"},{"$f":"VLOOKUP(Tableau1[Parcelle],Tableau7[[Parcelles]:[Campagne]],2,0)","v":{"v":20.5,"d":"20.50"}},"","","2013/2014","",null,null,""]
["Florian","17/12/2014","Labour","Coteau",{"$f":"VLOOKUP(Tableau1[Parcelle],Tableau7[[Parcelles]:[Campagne]],3,0)","v":"Tournesol"},{"$f":"VLOOKUP(Tableau1[Parcelle],Tableau7[[Parcelles]:[Campagne]],2,0)","v":8.35},"","","2013/2014"]
["Florian","16/12/2014","Moisson","Devant la maison",{"$f":"VLOOKUP(Tableau1[Parcelle],Tableau7[[Parcelles]:[Campagne]],3,0)","v":"Tournesol"},{"$f":"VLOOKUP(Tableau1[Parcelle],Tableau7[[Parcelles]:[Campagne]],2,0)","v":{"v":2.5,"d":"2.50"}},"Axial",null,"2013/2014"]
["Florian","15/12/2014","Labour","Coteau",{"$f":"VLOOKUP(Tableau1[Parcelle],Tableau7[[Parcelles]:[Campagne]],3,0)","v":"Tournesol"},{"$f":"VLOOKUP(Tableau1[Parcelle],Tableau7[[Parcelles]:[Campagne]],2,0)","v":8.35},"","","2013/2014"]
["Durand","13/12/2014","Pulvérisation","Bouscas",{"$f":"VLOOKUP(Tableau1[Parcelle],Tableau7[[Parcelles]:[Campagne]],3,0)","v":"Blé"},{"$f":"VLOOKUP(Tableau1[Parcelle],Tableau7[[Parcelles]:[Campagne]],2,0)","v":{"v":10.5,"d":"10.50"}},"Amonitrate 33.5%",null,"2013/2014"]
["Florian","17/12/2014","Moisson","sgdsfd",{"$f":"VLOOKUP(Tableau1[Parcelle],Tableau7[[Parcelles]:[Campagne]],3,0)","v":"Maïs"},{"$f":"VLOOKUP(Tableau1[Parcelle],Tableau7[[Parcelles]:[Campagne]],2,0)","v":{"v":55,"d":"55.00"}},"Urée 46%","","2013/2014"]
["Durand","17/12/2014","Engrais","sgdsfd",{"$f":"VLOOKUP(Tableau1[Parcelle],Tableau7[[Parcelles]:[Campagne]],3,0)","v":"Maïs"},{"$f":"VLOOKUP(Tableau1[Parcelle],Tableau7[[Parcelles]:[Campagne]],2,0)","v":{"v":55,"d":"55.00"}},"Amonitrate 33.5%","","2013/2014"]
["Durand","18/12/2014","Moisson","Sous la route",{"$f":"VLOOKUP(Tableau1[Parcelle],Tableau7[[Parcelles]:[Campagne]],3,0)","v":"Blé"},{"$f":"VLOOKUP(Tableau1[Parcelle],Tableau7[[Parcelles]:[Campagne]],2,0)","v":5.35},"","55","2013/2014"]
["Durand","18/12/2014","Pulvérisation","Sous la route",{"$f":"VLOOKUP(Tableau1[Parcelle],Tableau7[[Parcelles]:[Campagne]],3,0)","v":"Blé"},{"$f":"VLOOKUP(Tableau1[Parcelle],Tableau7[[Parcelles]:[Campagne]],2,0)","v":5.35},"Axial","","2013/2014"]
["Florian","20/12/2014","Pulvérisation","klhk",{"$f":"VLOOKUP(Tableau1[Parcelle],Tableau7[[Parcelles]:[Campagne]],3,0)","v":"Maïs"},{"$f":"VLOOKUP(Tableau1[Parcelle],Tableau7[[Parcelles]:[Campagne]],2,0)","v":{"v":85,"d":"85.00"}},"Amonitrate 33.5%","","2014/2015"]

{"sheet":"Base","index":1,"n_rows":18,"n_cols":38,"rows_kept":18}
["Opération","Tarrif","Colonne1","Colonne2",null,"Cultures",null,"Produits",null,"Client","Parcelles","Surface","Culture","Campagne",null,"Campagne","Campagne en cour (1 oui ; 0 non)",{"$nulls":12},"Clients","Adresse","Code postal","Ville","Téléphone",null,"Campagne","Client","Parcelle"]
["Labour",{"v":90,"d":"090.00€"},{"$nulls":3},"Blé",null,"Roundup",null,"Durand","Bouscas",{"v":10.5,"d":"010.50"},"Blé","2014/2015",null,"2013/2014",1,{"$nulls":12},"Durand","St Gauzens",81390,"ST Gauzens","06-15-45-85-58",null,"2014/2015","Durand","Bouscas"]
["Pulvérisation",{"v":15,"d":"015.00€"},{"$nulls":3},"Maïs",null,"Amonitrate 33.5%",null,"Durand","Sous la route",{"v":5.35,"d":"005.35"},"Blé","2013/2014",null,"2014/2015",0,{"$nulls":12},"Florian","Le Bouscas",81600,"Cadalen","06-45-68-85-27",null,"2014/2015","Durand","Sous la route"]
["Moisson",{"v":91,"d":"091.00€"},{"$nulls":3},"Tournesol",null,"Urée 46%",null,"Florian","La plaine",{"v":20.5,"d":"020.50"},"Tournesol","2014/2015",{"$nulls":15},"Moi","Callepe",81120,"Lombers","06-45-68-85-27",null,"2014/2015","Florian","La plaine"]
["Engrais",{"v":15,"d":"015.00€"},{"$nulls":3},"Colza",null,"Axial",null,"Durand","Devant la maison",{"v":2.5,"d":"002.50"},"Tournesol","2014/2015",{"$nulls":15},"Tisse","Le Bouscas",81600,"Cadalen","06-45-64-09-27",null,"2014/2015","Florian","Devant la maison"]
["Déchaumage",{"v":30,"d":"030.00€"},{"$nulls":3},"Orge",{"$nulls":3},"Moi","Coteau",{"v":8.35,"d":"008.35"},"Tournesol","2014/2015",{"$nulls":15},"","",{"$nulls":4},"2014/2015","Moi","Coteau"]
[{"$nulls":9},"Moi","Au dessus",{"v":7.35,"d":"007.35"},"Blé","2014/2015",{"$nulls":21},"2014/2015","Moi","Au dessus"]
[{"$nulls":9},"Moi","Devant la maison",{"v":2.5,"d":"002.50"},"Blé","2014/2015",{"$nulls":21},"2014/2015","Moi","Devant la maison"]
[{"$nulls":9},"Florian","Plateau",{"v":15,"d":"015.00"},"Tournesol","2014/2015",{"$nulls":21},"2014/2015","Florian","Plateau"]
[{"$nulls":9},"Florian","Essais",{"v":4.25,"d":"004.25"},"Blé","2014/2015",{"$nulls":21},"2014/2015","Florian","Essais"]
[{"$nulls":9},"Durand","sgfsd",{"v":15,"d":"015.00"},"Tournesol","2014/2015",{"$nulls":21},"2014/2015","Durand","sgfsd"]
[{"$nulls":9},"Florian","klhk",{"v":85,"d":"085.00"},"Maïs","2014/2015",{"$nulls":21},"2014/2015","Florian","klhk"]
[{"$nulls":9},"Florian","sgdsfd",{"v":55,"d":"055.00"},"Maïs","2014/2015",{"$nulls":21},"2014/2015","Florian","sgdsfd"]
[{"$nulls":9},"Florian","dsfh",{"v":45,"d":"045.00"},"Maïs","2014/2015",{"$nulls":21},"2013/2014","Florian","dsfh"]
[{"$nulls":9},"Moi","zetrf",{"v":85,"d":"085.00"},"Tournesol","2014/2015",{"$nulls":21},"2013/2014","Moi","zetrf"]
[{"$nulls":9},"Florian","Essais",{"v":45,"d":"045.00"},"Maïs","2014/2015",{"$nulls":21},"2014/2015","Florian","Essais"]
[{"$nulls":9},"Florian","Essais0",{"v":15,"d":"015.00"},"Maïs","2014/2015",{"$nulls":21},"2014/2015","Florian","Essais0"]
[{"$nulls":9},"Moi","Flo",{"v":15,"d":"015.00"},"Colza","2014/2015",{"$nulls":21},"2014/2015","Moi","Flo"]

{"sheet":"Résultat","index":2,"n_rows":21,"n_cols":15,"rows_kept":21}
[]
[null,{"$f":"Base!A2","v":"Labour"},{"$f":"Base!A2","v":"Labour"},{"$f":"Base!A3","v":"Pulvérisation"},{"$f":"Base!A3","v":"Pulvérisation"},{"$f":"Base!A4","v":"Moisson"},{"$f":"Base!A4","v":"Moisson"},{"$f":"Base!A5","v":"Engrais"},{"$f":"Base!A5","v":"Engrais"},{"$f":"Base!A6","v":"Déchaumage"},{"$f":"Base!A6","v":"Déchaumage"},{"v":0,"d":"000.00"},{"$f":"Base!A7","v":0},{"$f":"Base!A8","v":0},{"$f":"Base!A8","v":0}]
[{"$f":"Base!AD2","v":"Durand"},{"$f":"SUMPRODUCT((Tableau1[Client]=Tableau2[[#This Row],[Clients]])*(Tableau1[Oppération]=Résultat!$B$2)*(Tableau1[Surface]))","v":{"v":0,"d":"0.00 ha"}},{"$f":"IF(C$2>0,((SUMPRODUCT((Tableau1[Client]=$A3)*(Tableau1[Oppération]=Résultat!C$2)*(Tableau1[Surface])))*VLOOKUP(C$2,Tableau6[],2,0)),\" \")","v":0},{"$f":"SUMPRODUCT((Tableau1[Client]=Tableau2[[#This Row],[Clients]])*(Tableau1[Oppération]=Résultat!$D$2)*(Tableau1[Surface]))","v":{"v":15.85,"d":"15.85 ha"}},{"$f":"IF(E$2>0,((SUMPRODUCT((Tableau1[Client]=$A3)*(Tableau1[Oppération]=Résultat!E$2)*(Tableau1[Surface])))*VLOOKUP(E$2,Tableau6[],2,0)),\" \")","v":{"v":237.75,"d":"237.75 €"}},{"$f":"SUMPRODUCT((Tableau1[Client]=Tableau2[[#This Row],[Clients]])*(Tableau1[Oppération]=Résultat!$F$2)*(Tableau1[Surface]))","v":{"v":5.35,"d":"5.35 ha"}},{"$f":"IF(G$2>0,((SUMPRODUCT((Tableau1[Client]=$A3)*(Tableau1[Oppération]=Résultat!G$2)*(Tableau1[Surface])))*VLOOKUP(G$2,Tableau6[],2,0)),\" \")","v":{"v":486.84999999999997,"d":"486.85 €"}},{"$f":"SUMPRODUCT((Tableau1[Client]=Tableau2[[#This Row],[Clients]])*(Tableau1[Oppération]=Résultat!$H$2)*(Tableau1[Surface]))","v":{"v":55,"d":"55.00 ha"}},{"$f":"IF(I$2>0,((SUMPRODUCT((Tableau1[Client]=$A3)*(Tableau1[Oppération]=Résultat!I$2)*(Tableau1[Surface])))*VLOOKUP(I$2,Tableau6[],2,0)),\" \")","v":{"v":825,"d":"825.00 €"}},{"$f":"SUMPRODUCT((Tableau1[Client]=Tableau2[[#This Row],[Clients]])*(Tableau1[Oppération]=Résultat!J2)*(Tableau1[Surface]))","v":{"v":0,"d":"0.00 ha"}},{"$f":"IF(K$2>0,((SUMPRODUCT((Tableau1[Client]=$A3)*(Tableau1[Oppération]=Résultat!K$2)*(Tableau1[Surface])))*VLOOKUP(K$2,Tableau6[],2,0)),\" \")","v":0},{"v":0,"d":"000.00"},{"$f":"IF(M$2>0,((SUMPRODUCT((Tableau1[Client]=$A3)*(Tableau1[Oppération]=Résultat!M$2)*(Tableau1[Surface])))*VLOOKUP(M$2,Tableau6[],2,0)),\" \")","v":" "},{"$f":"SUMPRODUCT((Tableau1[Client]=Tableau2[[#This Row],[Clients]])*(Tableau1[Oppération]=Résultat!N2)*(Tableau1[Surface]))","v":{"v":0,"d":"0.00 ha"}},{"$f":"IF(O$2>0,((SUMPRODUCT((Tableau1[Client]=$A3)*(Tableau1[Oppération]=Résultat!O$2)*(Tableau1[Surface])))*VLOOKUP(O$2,Tableau6[],2,0)),\" \")","v":" "}]
[{"$f":"Base!AD3","v":"Florian"},{"$f":"SUMPRODUCT((Tableau1[Client]=Tableau2[[#This Row],[Clients]])*(Tableau1[Oppération]=Résultat!$B$2)*(Tableau1[Surface]))","v":{"v":16.7,"d":"16.70 ha"}},{"$f":"IF(C$2>0,((SUMPRODUCT((Tableau1[Client]=$A4)*(Tableau1[Oppération]=Résultat!C$2)*(Tableau1[Surface])))*VLOOKUP(C$2,Tableau6[],2,0)),\" \")","v":{"v":1503,"d":"1,503.00 €"}},{"$f":"SUMPRODUCT((Tableau1[Client]=Tableau2[[#This Row],[Clients]])*(Tableau1[Oppération]=Résultat!$D$2)*(Tableau1[Surface]))","v":{"v":105.5,"d":"105.50 ha"}},{"$f":"IF(E$2>0,((SUMPRODUCT((Tableau1[Client]=$A4)*(Tableau1[Oppération]=Résultat!E$2)*(Tableau1[Surface])))*VLOOKUP(E$2,Tableau6[],2,0)),\" \")","v":{"v":1582.5,"d":"1,582.50 €"}},{"$f":"SUMPRODUCT((Tableau1[Client]=Tableau2[[#This Row],[Clients]])*(Tableau1[Oppération]=Résultat!$F$2)*(Tableau1[Surface]))","v":{"v":62.85,"d":"62.85 ha"}},{"$f":"IF(G$2>0,((SUMPRODUCT((Tableau1[Client]=$A4)*(Tableau1[Oppération]=Résultat!G$2)*(Tableau1[Surface])))*VLOOKUP(G$2,Tableau6[],2,0)),\" \")","v":{"v":5719.35,"d":"5,719.35 €"}},{"$f":"SUMPRODUCT((Tableau1[Client]=Tableau2[[#This Row],[Clients]])*(Tableau1[Oppération]=Résultat!$H$2)*(Tableau1[Surface]))","v":{"v":0,"d":"0.00 ha"}},{"$f":"IF(I$2>0,((SUMPRODUCT((Tableau1[Client]=$A4)*(Tableau1[Oppération]=Résultat!I$2)*(Tableau1[Surface])))*VLOOKUP(I$2,Tableau6[],2,0)),\" \")","v":0},{"$f":"SUMPRODUCT((Tableau1[Client]=Tableau2[[#This Row],[Clients]])*(Tableau1[Oppération]=Résultat!J3)*(Tableau1[Surface]))","v":{"v":0,"d":"0.00 ha"}},{"$f":"IF(K$2>0,((SUMPRODUCT((Tableau1[Client]=$A4)*(Tableau1[Oppération]=Résultat!K$2)*(Tableau1[Surface])))*VLOOKUP(K$2,Tableau6[],2,0)),\" \")","v":0},{"v":0,"d":"000.00"},{"$f":"IF(M$2>0,((SUMPRODUCT((Tableau1[Client]=$A4)*(Tableau1[Oppération]=Résultat!M$2)*(Tableau1[Surface])))*VLOOKUP(M$2,Tableau6[],2,0)),\" \")","v":" "},{"$f":"SUMPRODUCT((Tableau1[Client]=Tableau2[[#This Row],[Clients]])*(Tableau1[Oppération]=Résultat!N3)*(Tableau1[Surface]))","v":{"v":0,"d":"0.00 ha"}},{"$f":"IF(O$2>0,((SUMPRODUCT((Tableau1[Client]=$A4)*(Tableau1[Oppération]=Résultat!O$2)*(Tableau1[Surface])))*VLOOKUP(O$2,Tableau6[],2,0)),\" \")","v":" "}]
[{"$f":"Base!AD4","v":"Moi"},{"$f":"SUMPRODUCT((Tableau1[Client]=Tableau2[[#This Row],[Clients]])*(Tableau1[Oppération]=Résultat!$B$2)*(Tableau1[Surface]))","v":{"v":0,"d":"0.00 ha"}},{"$f":"IF(C$2>0,((SUMPRODUCT((Tableau1[Client]=$A5)*(Tableau1[Oppération]=Résultat!C$2)*(Tableau1[Surface])))*VLOOKUP(C$2,Tableau6[],2,0)),\" \")","v":0},{"$f":"SUMPRODUCT((Tableau1[Client]=Tableau2[[#This Row],[Clients]])*(Tableau1[Oppération]=Résultat!$D$2)*(Tableau1[Surface]))","v":{"v":0,"d":"0.00 ha"}},{"$f":"IF(E$2>0,((SUMPRODUCT((Tableau1[Client]=$A5)*(Tableau1[Oppération]=Résultat!E$2)*(Tableau1[Surface])))*VLOOKUP(E$2,Tableau6[],2,0)),\" \")","v":0},{"$f":"SUMPRODUCT((Tableau1[Client]=Tableau2[[#This Row],[Clients]])*(Tableau1[Oppération]=Résultat!$F$2)*(Tableau1[Surface]))","v":{"v":0,"d":"0.00 ha"}},{"$f":"IF(G$2>0,((SUMPRODUCT((Tableau1[Client]=$A5)*(Tableau1[Oppération]=Résultat!G$2)*(Tableau1[Surface])))*VLOOKUP(G$2,Tableau6[],2,0)),\" \")","v":0},{"$f":"SUMPRODUCT((Tableau1[Client]=Tableau2[[#This Row],[Clients]])*(Tableau1[Oppération]=Résultat!$H$2)*(Tableau1[Surface]))","v":{"v":0,"d":"0.00 ha"}},{"$f":"IF(I$2>0,((SUMPRODUCT((Tableau1[Client]=$A5)*(Tableau1[Oppération]=Résultat!I$2)*(Tableau1[Surface])))*VLOOKUP(I$2,Tableau6[],2,0)),\" \")","v":0},{"$f":"SUMPRODUCT((Tableau1[Client]=Tableau2[[#This Row],[Clients]])*(Tableau1[Oppération]=Résultat!J4)*(Tableau1[Surface]))","v":{"v":0,"d":"0.00 ha"}},{"$f":"IF(K$2>0,((SUMPRODUCT((Tableau1[Client]=$A5)*(Tableau1[Oppération]=Résultat!K$2)*(Tableau1[Surface])))*VLOOKUP(K$2,Tableau6[],2,0)),\" \")","v":0},{"v":0,"d":"000.00"},{"$f":"IF(M$2>0,((SUMPRODUCT((Tableau1[Client]=$A5)*(Tableau1[Oppération]=Résultat!M$2)*(Tableau1[Surface])))*VLOOKUP(M$2,Tableau6[],2,0)),\" \")","v":" "},{"$f":"SUMPRODUCT((Tableau1[Client]=Tableau2[[#This Row],[Clients]])*(Tableau1[Oppération]=Résultat!N4)*(Tableau1[Surface]))","v":{"v":0,"d":"0.00 ha"}},{"$f":"IF(O$2>0,((SUMPRODUCT((Tableau1[Client]=$A5)*(Tableau1[Oppération]=Résultat!O$2)*(Tableau1[Surface])))*VLOOKUP(O$2,Tableau6[],2,0)),\" \")","v":" "}]
[{"$f":"Base!AD5","v":"Tisse"},{"$f":"SUMPRODUCT((Tableau1[Client]=Tableau2[[#This Row],[Clients]])*(Tableau1[Oppération]=Résultat!$B$2)*(Tableau1[Surface]))","v":{"v":0,"d":"0.00 ha"}},{"$f":"IF(C$2>0,((SUMPRODUCT((Tableau1[Client]=$A6)*(Tableau1[Oppération]=Résultat!C$2)*(Tableau1[Surface])))*VLOOKUP(C$2,Tableau6[],2,0)),\" \")","v":0},{"$f":"SUMPRODUCT((Tableau1[Client]=Tableau2[[#This Row],[Clients]])*(Tableau1[Oppération]=Résultat!$D$2)*(Tableau1[Surface]))","v":{"v":0,"d":"0.00 ha"}},{"$f":"IF(E$2>0,((SUMPRODUCT((Tableau1[Client]=$A6)*(Tableau1[Oppération]=Résultat!E$2)*(Tableau1[Surface])))*VLOOKUP(E$2,Tableau6[],2,0)),\" \")","v":0},{"$f":"SUMPRODUCT((Tableau1[Client]=Tableau2[[#This Row],[Clients]])*(Tableau1[Oppération]=Résultat!$F$2)*(Tableau1[Surface]))","v":{"v":0,"d":"0.00 ha"}},{"$f":"IF(G$2>0,((SUMPRODUCT((Tableau1[Client]=$A6)*(Tableau1[Oppération]=Résultat!G$2)*(Tableau1[Surface])))*VLOOKUP(G$2,Tableau6[],2,0)),\" \")","v":0},{"$f":"SUMPRODUCT((Tableau1[Client]=Tableau2[[#This Row],[Clients]])*(Tableau1[Oppération]=Résultat!$H$2)*(Tableau1[Surface]))","v":{"v":0,"d":"0.00 ha"}},{"$f":"IF(I$2>0,((SUMPRODUCT((Tableau1[Client]=$A6)*(Tableau1[Oppération]=Résultat!I$2)*(Tableau1[Surface])))*VLOOKUP(I$2,Tableau6[],2,0)),\" \")","v":0},{"$f":"SUMPRODUCT((Tableau1[Client]=Tableau2[[#This Row],[Clients]])*(Tableau1[Oppération]=Résultat!J5)*(Tableau1[Surface]))","v":{"v":0,"d":"0.00 ha"}},{"$f":"IF(K$2>0,((SUMPRODUCT((Tableau1[Client]=$A6)*(Tableau1[Oppération]=Résultat!K$2)*(Tableau1[Surface])))*VLOOKUP(K$2,Tableau6[],2,0)),\" \")","v":0},{"v":0,"d":"000.00"},{"$f":"IF(M$2>0,((SUMPRODUCT((Tableau1[Client]=$A6)*(Tableau1[Oppération]=Résultat!M$2)*(Tableau1[Surface])))*VLOOKUP(M$2,Tableau6[],2,0)),\" \")","v":" "},{"$f":"SUMPRODUCT((Tableau1[Client]=Tableau2[[#This Row],[Clients]])*(Tableau1[Oppération]=Résultat!N5)*(Tableau1[Surface]))","v":{"v":0,"d":"0.00 ha"}},{"$f":"IF(O$2>0,((SUMPRODUCT((Tableau1[Client]=$A6)*(Tableau1[Oppération]=Résultat!O$2)*(Tableau1[Surface])))*VLOOKUP(O$2,Tableau6[],2,0)),\" \")","v":" "}]
[{"$f":"Base!AD6","v":""},{"$f":"SUMPRODUCT((Tableau1[Client]=Tableau2[[#This Row],[Clients]])*(Tableau1[Oppération]=Résultat!$B$2)*(Tableau1[Surface]))","v":{"v":0,"d":"0.00 ha"}},{"$f":"IF(C$2>0,((SUMPRODUCT((Tableau1[Client]=$A7)*(Tableau1[Oppération]=Résultat!C$2)*(Tableau1[Surface])))*VLOOKUP(C$2,Tableau6[],2,0)),\" \")","v":0},{"$f":"SUMPRODUCT((Tableau1[Client]=Tableau2[[#This Row],[Clients]])*(Tableau1[Oppération]=Résultat!$D$2)*(Tableau1[Surface]))","v":{"v":0,"d":"0.00 ha"}},{"$f":"IF(E$2>0,((SUMPRODUCT((Tableau1[Client]=$A7)*(Tableau1[Oppération]=Résultat!E$2)*(Tableau1[Surface])))*VLOOKUP(E$2,Tableau6[],2,0)),\" \")","v":0},{"$f":"SUMPRODUCT((Tableau1[Client]=Tableau2[[#This Row],[Clients]])*(Tableau1[Oppération]=Résultat!$F$2)*(Tableau1[Surface]))","v":{"v":0,"d":"0.00 ha"}},{"$f":"IF(G$2>0,((SUMPRODUCT((Tableau1[Client]=$A7)*(Tableau1[Oppération]=Résultat!G$2)*(Tableau1[Surface])))*VLOOKUP(G$2,Tableau6[],2,0)),\" \")","v":0},{"$f":"SUMPRODUCT((Tableau1[Client]=Tableau2[[#This Row],[Clients]])*(Tableau1[Oppération]=Résultat!$H$2)*(Tableau1[Surface]))","v":{"v":0,"d":"0.00 ha"}},{"$f":"IF(I$2>0,((SUMPRODUCT((Tableau1[Client]=$A7)*(Tableau1[Oppération]=Résultat!I$2)*(Tableau1[Surface])))*VLOOKUP(I$2,Tableau6[],2,0)),\" \")","v":0},{"$f":"SUMPRODUCT((Tableau1[Client]=Tableau2[[#This Row],[Clients]])*(Tableau1[Oppération]=Résultat!J6)*(Tableau1[Surface]))","v":{"v":0,"d":"0.00 ha"}},{"$f":"IF(K$2>0,((SUMPRODUCT((Tableau1[Client]=$A7)*(Tableau1[Oppération]=Résultat!K$2)*(Tableau1[Surface])))*VLOOKUP(K$2,Tableau6[],2,0)),\" \")","v":0},{"v":0,"d":"000.00"},{"$f":"IF(M$2>0,((SUMPRODUCT((Tableau1[Client]=$A7)*(Tableau1[Oppération]=Résultat!M$2)*(Tableau1[Surface])))*VLOOKUP(M$2,Tableau6[],2,0)),\" \")","v":" "},{"$f":"SUMPRODUCT((Tableau1[Client]=Tableau2[[#This Row],[Clients]])*(Tableau1[Oppération]=Résultat!N6)*(Tableau1[Surface]))","v":{"v":0,"d":"0.00 ha"}},{"$f":"IF(O$2>0,((SUMPRODUCT((Tableau1[Client]=$A7)*(Tableau1[Oppération]=Résultat!O$2)*(Tableau1[Surface])))*VLOOKUP(O$2,Tableau6[],2,0)),\" \")","v":" "}]
[{"$f":"Base!AD7","v":0},{"$f":"SUMPRODUCT((Tableau1[Client]=Tableau2[[#This Row],[Clients]])*(Tableau1[Oppération]=Résultat!$B$2)*(Tableau1[Surface]))","v":{"v":0,"d":"0.00 ha"}},{"$f":"IF(C$2>0,((SUMPRODUCT((Tableau1[Client]=$A8)*(Tableau1[Oppération]=Résultat!C$2)*(Tableau1[Surface])))*VLOOKUP(C$2,Tableau6[],2,0)),\" \")","v":0},{"$f":"SUMPRODUCT((Tableau1[Client]=Tableau2[[#This Row],[Clients]])*(Tableau1[Oppération]=Résultat!$D$2)*(Tableau1[Surface]))","v":{"v":0,"d":"0.00 ha"}},{"$f":"IF(E$2>0,((SUMPRODUCT((Tableau1[Client]=$A8)*(Tableau1[Oppération]=Résultat!E$2)*(Tableau1[Surface])))*VLOOKUP(E$2,Tableau6[],2,0)),\" \")","v":0},{"$f":"SUMPRODUCT((Tableau1[Client]=Tableau2[[#This Row],[Clients]])*(Tableau1[Oppération]=Résultat!$F$2)*(Tableau1[Surface]))","v":{"v":0,"d":"0.00 ha"}},{"$f":"IF(G$2>0,((SUMPRODUCT((Tableau1[Client]=$A8)*(Tableau1[Oppération]=Résultat!G$2)*(Tableau1[Surface])))*VLOOKUP(G$2,Tableau6[],2,0)),\" \")","v":0},{"$f":"SUMPRODUCT((Tableau1[Client]=Tableau2[[#This Row],[Clients]])*(Tableau1[Oppération]=Résultat!$H$2)*(Tableau1[Surface]))","v":{"v":0,"d":"0.00 ha"}},{"$f":"IF(I$2>0,((SUMPRODUCT((Tableau1[Client]=$A8)*(Tableau1[Oppération]=Résultat!I$2)*(Tableau1[Surface])))*VLOOKUP(I$2,Tableau6[],2,0)),\" \")","v":0},{"$f":"SUMPRODUCT((Tableau1[Client]=Tableau2[[#This Row],[Clients]])*(Tableau1[Oppération]=Résultat!J7)*(Tableau1[Surface]))","v":{"v":0,"d":"0.00 ha"}},{"$f":"IF(K$2>0,((SUMPRODUCT((Tableau1[Client]=$A8)*(Tableau1[Oppération]=Résultat!K$2)*(Tableau1[Surface])))*VLOOKUP(K$2,Tableau6[],2,0)),\" \")","v":0},{"v":0,"d":"000.00"},{"$f":"IF(M$2>0,((SUMPRODUCT((Tableau1[Client]=$A8)*(Tableau1[Oppération]=Résultat!M$2)*(Tableau1[Surface])))*VLOOKUP(M$2,Tableau6[],2,0)),\" \")","v":" "},{"$f":"SUMPRODUCT((Tableau1[Client]=Tableau2[[#This Row],[Clients]])*(Tableau1[Oppération]=Résultat!N7)*(Tableau1[Surface]))","v":{"v":0,"d":"0.00 ha"}},{"$f":"IF(O$2>0,((SUMPRODUCT((Tableau1[Client]=$A8)*(Tableau1[Oppération]=Résultat!O$2)*(Tableau1[Surface])))*VLOOKUP(O$2,Tableau6[],2,0)),\" \")","v":" "}]
[{"$f":"Base!AD8","v":0},{"$f":"SUMPRODUCT((Tableau1[Client]=Tableau2[[#This Row],[Clients]])*(Tableau1[Oppération]=Résultat!$B$2)*(Tableau1[Surface]))","v":{"v":0,"d":"0.00 ha"}},{"$f":"IF(C$2>0,((SUMPRODUCT((Tableau1[Client]=$A9)*(Tableau1[Oppération]=Résultat!C$2)*(Tableau1[Surface])))*VLOOKUP(C$2,Tableau6[],2,0)),\" \")","v":0},{"$f":"SUMPRODUCT((Tableau1[Client]=Tableau2[[#This Row],[Clients]])*(Tableau1[Oppération]=Résultat!$D$2)*(Tableau1[Surface]))","v":{"v":0,"d":"0.00 ha"}},{"$f":"IF(E$2>0,((SUMPRODUCT((Tableau1[Client]=$A9)*(Tableau1[Oppération]=Résultat!E$2)*(Tableau1[Surface])))*VLOOKUP(E$2,Tableau6[],2,0)),\" \")","v":0},{"$f":"SUMPRODUCT((Tableau1[Client]=Tableau2[[#This Row],[Clients]])*(Tableau1[Oppération]=Résultat!$F$2)*(Tableau1[Surface]))","v":{"v":0,"d":"0.00 ha"}},{"$f":"IF(G$2>0,((SUMPRODUCT((Tableau1[Client]=$A9)*(Tableau1[Oppération]=Résultat!G$2)*(Tableau1[Surface])))*VLOOKUP(G$2,Tableau6[],2,0)),\" \")","v":0},{"$f":"SUMPRODUCT((Tableau1[Client]=Tableau2[[#This Row],[Clients]])*(Tableau1[Oppération]=Résultat!$H$2)*(Tableau1[Surface]))","v":{"v":0,"d":"0.00 ha"}},{"$f":"IF(I$2>0,((SUMPRODUCT((Tableau1[Client]=$A9)*(Tableau1[Oppération]=Résultat!I$2)*(Tableau1[Surface])))*VLOOKUP(I$2,Tableau6[],2,0)),\" \")","v":0},{"$f":"SUMPRODUCT((Tableau1[Client]=Tableau2[[#This Row],[Clients]])*(Tableau1[Oppération]=Résultat!J8)*(Tableau1[Surface]))","v":{"v":0,"d":"0.00 ha"}},{"$f":"IF(K$2>0,((SUMPRODUCT((Tableau1[Client]=$A9)*(Tableau1[Oppération]=Résultat!K$2)*(Tableau1[Surface])))*VLOOKUP(K$2,Tableau6[],2,0)),\" \")","v":0},{"v":0,"d":"000.00"},{"$f":"IF(M$2>0,((SUMPRODUCT((Tableau1[Client]=$A9)*(Tableau1[Oppération]=Résultat!M$2)*(Tableau1[Surface])))*VLOOKUP(M$2,Tableau6[],2,0)),\" \")","v":" "},{"$f":"SUMPRODUCT((Tableau1[Client]=Tableau2[[#This Row],[Clients]])*(Tableau1[Oppération]=Résultat!N8)*(Tableau1[Surface]))","v":{"v":0,"d":"0.00 ha"}},{"$f":"IF(O$2>0,((SUMPRODUCT((Tableau1[Client]=$A9)*(Tableau1[Oppération]=Résultat!O$2)*(Tableau1[Surface])))*VLOOKUP(O$2,Tableau6[],2,0)),\" \")","v":" "}]
[{"$f":"Base!AD9","v":0},{"$f":"SUMPRODUCT((Tableau1[Client]=Tableau2[[#This Row],[Clients]])*(Tableau1[Oppération]=Résultat!$B$2)*(Tableau1[Surface]))","v":{"v":0,"d":"0.00 ha"}},{"$f":"IF(C$2>0,((SUMPRODUCT((Tableau1[Client]=$A10)*(Tableau1[Oppération]=Résultat!C$2)*(Tableau1[Surface])))*VLOOKUP(C$2,Tableau6[],2,0)),\" \")","v":0},{"$f":"SUMPRODUCT((Tableau1[Client]=Tableau2[[#This Row],[Clients]])*(Tableau1[Oppération]=Résultat!$D$2)*(Tableau1[Surface]))","v":{"v":0,"d":"0.00 ha"}},{"$f":"IF(E$2>0,((SUMPRODUCT((Tableau1[Client]=$A10)*(Tableau1[Oppération]=Résultat!E$2)*(Tableau1[Surface])))*VLOOKUP(E$2,Tableau6[],2,0)),\" \")","v":0},{"$f":"SUMPRODUCT((Tableau1[Client]=Tableau2[[#This Row],[Clients]])*(Tableau1[Oppération]=Résultat!$F$2)*(Tableau1[Surface]))","v":{"v":0,"d":"0.00 ha"}},{"$f":"IF(G$2>0,((SUMPRODUCT((Tableau1[Client]=$A10)*(Tableau1[Oppération]=Résultat!G$2)*(Tableau1[Surface])))*VLOOKUP(G$2,Tableau6[],2,0)),\" \")","v":0},{"$f":"SUMPRODUCT((Tableau1[Client]=Tableau2[[#This Row],[Clients]])*(Tableau1[Oppération]=Résultat!$H$2)*(Tableau1[Surface]))","v":{"v":0,"d":"0.00 ha"}},{"$f":"IF(I$2>0,((SUMPRODUCT((Tableau1[Client]=$A10)*(Tableau1[Oppération]=Résultat!I$2)*(Tableau1[Surface])))*VLOOKUP(I$2,Tableau6[],2,0)),\" \")","v":0},{"$f":"SUMPRODUCT((Tableau1[Client]=Tableau2[[#This Row],[Clients]])*(Tableau1[Oppération]=Résultat!J9)*(Tableau1[Surface]))","v":{"v":0,"d":"0.00 ha"}},{"$f":"IF(K$2>0,((SUMPRODUCT((Tableau1[Client]=$A10)*(Tableau1[Oppération]=Résultat!K$2)*(Tableau1[Surface])))*VLOOKUP(K$2,Tableau6[],2,0)),\" \")","v":0},{"v":0,"d":"000.00"},{"$f":"IF(M$2>0,((SUMPRODUCT((Tableau1[Client]=$A10)*(Tableau1[Oppération]=Résultat!M$2)*(Tableau1[Surface])))*VLOOKUP(M$2,Tableau6[],2,0)),\" \")","v":" "},{"$f":"SUMPRODUCT((Tableau1[Client]=Tableau2[[#This Row],[Clients]])*(Tableau1[Oppération]=Résultat!N9)*(Tableau1[Surface]))","v":{"v":0,"d":"0.00 ha"}},{"$f":"IF(O$2>0,((SUMPRODUCT((Tableau1[Client]=$A10)*(Tableau1[Oppération]=Résultat!O$2)*(Tableau1[Surface])))*VLOOKUP(O$2,Tableau6[],2,0)),\" \")","v":" "}]
[{"$f":"Base!AD10","v":0},{"$f":"SUMPRODUCT((Tableau1[Client]=Tableau2[[#This Row],[Clients]])*(Tableau1[Oppération]=Résultat!$B$2)*(Tableau1[Surface]))","v":{"v":0,"d":"0.00 ha"}},{"$f":"IF(C$2>0,((SUMPRODUCT((Tableau1[Client]=$A11)*(Tableau1[Oppération]=Résultat!C$2)*(Tableau1[Surface])))*VLOOKUP(C$2,Tableau6[],2,0)),\" \")","v":0},{"$f":"SUMPRODUCT((Tableau1[Client]=Tableau2[[#This Row],[Clients]])*(Tableau1[Oppération]=Résultat!$D$2)*(Tableau1[Surface]))","v":{"v":0,"d":"0.00 ha"}},{"$f":"IF(E$2>0,((SUMPRODUCT((Tableau1[Client]=$A11)*(Tableau1[Oppération]=Résultat!E$2)*(Tableau1[Surface])))*VLOOKUP(E$2,Tableau6[],2,0)),\" \")","v":0},{"$f":"SUMPRODUCT((Tableau1[Client]=Tableau2[[#This Row],[Clients]])*(Tableau1[Oppération]=Résultat!$F$2)*(Tableau1[Surface]))","v":{"v":0,"d":"0.00 ha"}},{"$f":"IF(G$2>0,((SUMPRODUCT((Tableau1[Client]=$A11)*(Tableau1[Oppération]=Résultat!G$2)*(Tableau1[Surface])))*VLOOKUP(G$2,Tableau6[],2,0)),\" \")","v":0},{"$f":"SUMPRODUCT((Tableau1[Client]=Tableau2[[#This Row],[Clients]])*(Tableau1[Oppération]=Résultat!$H$2)*(Tableau1[Surface]))","v":{"v":0,"d":"0.00 ha"}},{"$f":"IF(I$2>0,((SUMPRODUCT((Tableau1[Client]=$A11)*(Tableau1[Oppération]=Résultat!I$2)*(Tableau1[Surface])))*VLOOKUP(I$2,Tableau6[],2,0)),\" \")","v":0},{"$f":"SUMPRODUCT((Tableau1[Client]=Tableau2[[#This Row],[Clients]])*(Tableau1[Oppération]=Résultat!J10)*(Tableau1[Surface]))","v":{"v":0,"d":"0.00 ha"}},{"$f":"IF(K$2>0,((SUMPRODUCT((Tableau1[Client]=$A11)*(Tableau1[Oppération]=Résultat!K$2)*(Tableau1[Surface])))*VLOOKUP(K$2,Tableau6[],2,0)),\" \")","v":0},{"v":1,"d":"001.00"},{"$f":"IF(M$2>0,((SUMPRODUCT((Tableau1[Client]=$A11)*(Tableau1[Oppération]=Résultat!M$2)*(Tableau1[Surface])))*VLOOKUP(M$2,Tableau6[],2,0)),\" \")","v":" "},{"$f":"SUMPRODUCT((Tableau1[Client]=Tableau2[[#This Row],[Clients]])*(Tableau1[Oppération]=Résultat!N10)*(Tableau1[Surface]))","v":{"v":0,"d":"0.00 ha"}}]
[{"$f":"Base!AD11","v":0},{"$f":"SUMPRODUCT((Tableau1[Client]=Tableau2[[#This Row],[Clients]])*(Tableau1[Oppération]=Résultat!$B$2)*(Tableau1[Surface]))","v":{"v":0,"d":"0.00 ha"}},{"$f":"IF(C$2>0,((SUMPRODUCT((Tableau1[Client]=$A12)*(Tableau1[Oppération]=Résultat!C$2)*(Tableau1[Surface])))*VLOOKUP(C$2,Tableau6[],2,0)),\" \")","v":0},{"$f":"SUMPRODUCT((Tableau1[Client]=Tableau2[[#This Row],[Clients]])*(Tableau1[Oppération]=Résultat!$D$2)*(Tableau1[Surface]))","v":{"v":0,"d":"0.00 ha"}},{"$f":"IF(E$2>0,((SUMPRODUCT((Tableau1[Client]=$A12)*(Tableau1[Oppération]=Résultat!E$2)*(Tableau1[Surface])))*VLOOKUP(E$2,Tableau6[],2,0)),\" \")","v":0},{"$f":"SUMPRODUCT((Tableau1[Client]=Tableau2[[#This Row],[Clients]])*(Tableau1[Oppération]=Résultat!$F$2)*(Tableau1[Surface]))","v":{"v":0,"d":"0.00 ha"}},{"$f":"IF(G$2>0,((SUMPRODUCT((Tableau1[Client]=$A12)*(Tableau1[Oppération]=Résultat!G$2)*(Tableau1[Surface])))*VLOOKUP(G$2,Tableau6[],2,0)),\" \")","v":0},{"$f":"SUMPRODUCT((Tableau1[Client]=Tableau2[[#This Row],[Clients]])*(Tableau1[Oppération]=Résultat!$H$2)*(Tableau1[Surface]))","v":{"v":0,"d":"0.00 ha"}},{"$f":"IF(I$2>0,((SUMPRODUCT((Tableau1[Client]=$A12)*(Tableau1[Oppération]=Résultat!I$2)*(Tableau1[Surface])))*VLOOKUP(I$2,Tableau6[],2,0)),\" \")","v":0},{"$f":"SUMPRODUCT((Tableau1[Client]=Tableau2[[#This Row],[Clients]])*(Tableau1[Oppération]=Résultat!J11)*(Tableau1[Surface]))","v":{"v":0,"d":"0.00 ha"}},{"$f":"IF(K$2>0,((SUMPRODUCT((Tableau1[Client]=$A12)*(Tableau1[Oppération]=Résultat!K$2)*(Tableau1[Surface])))*VLOOKUP(K$2,Tableau6[],2,0)),\" \")","v":0},{"v":2,"d":"002.00"},{"$f":"IF(M$2>0,((SUMPRODUCT((Tableau1[Client]=$A12)*(Tableau1[Oppération]=Résultat!M$2)*(Tableau1[Surface])))*VLOOKUP(M$2,Tableau6[],2,0)),\" \")","v":" "},{"$f":"SUMPRODUCT((Tableau1[Client]=Tableau2[[#This Row],[Clients]])*(Tableau1[Oppération]=Résultat!N11)*(Tableau1[Surface]))","v":{"v":0,"d":"0.00 ha"}}]
[{"$f":"Base!AD12","v":0},{"$f":"SUMPRODUCT((Tableau1[Client]=Tableau2[[#This Row],[Clients]])*(Tableau1[Oppération]=Résultat!$B$2)*(Tableau1[Surface]))","v":{"v":0,"d":"0.00 ha"}},{"$f":"IF(C$2>0,((SUMPRODUCT((Tableau1[Client]=$A13)*(Tableau1[Oppération]=Résultat!C$2)*(Tableau1[Surface])))*VLOOKUP(C$2,Tableau6[],2,0)),\" \")","v":0},{"$f":"SUMPRODUCT((Tableau1[Client]=Tableau2[[#This Row],[Clients]])*(Tableau1[Oppération]=Résultat!$D$2)*(Tableau1[Surface]))","v":{"v":0,"d":"0.00 ha"}},{"$f":"IF(E$2>0,((SUMPRODUCT((Tableau1[Client]=$A13)*(Tableau1[Oppération]=Résultat!E$2)*(Tableau1[Surface])))*VLOOKUP(E$2,Tableau6[],2,0)),\" \")","v":0},{"$f":"SUMPRODUCT((Tableau1[Client]=Tableau2[[#This Row],[Clients]])*(Tableau1[Oppération]=Résultat!$F$2)*(Tableau1[Surface]))","v":{"v":0,"d":"0.00 ha"}},{"$f":"IF(G$2>0,((SUMPRODUCT((Tableau1[Client]=$A13)*(Tableau1[Oppération]=Résultat!G$2)*(Tableau1[Surface])))*VLOOKUP(G$2,Tableau6[],2,0)),\" \")","v":0},{"$f":"SUMPRODUCT((Tableau1[Client]=Tableau2[[#This Row],[Clients]])*(Tableau1[Oppération]=Résultat!$H$2)*(Tableau1[Surface]))","v":{"v":0,"d":"0.00 ha"}},{"$f":"IF(I$2>0,((SUMPRODUCT((Tableau1[Client]=$A13)*(Tableau1[Oppération]=Résultat!I$2)*(Tableau1[Surface])))*VLOOKUP(I$2,Tableau6[],2,0)),\" \")","v":0},{"$f":"SUMPRODUCT((Tableau1[Client]=Tableau2[[#This Row],[Clients]])*(Tableau1[Oppération]=Résultat!J12)*(Tableau1[Surface]))","v":{"v":0,"d":"0.00 ha"}},{"$f":"IF(K$2>0,((SUMPRODUCT((Tableau1[Client]=$A13)*(Tableau1[Oppération]=Résultat!K$2)*(Tableau1[Surface])))*VLOOKUP(K$2,Tableau6[],2,0)),\" \")","v":0},{"v":3,"d":"003.00"},{"$f":"IF(M$2>0,((SUMPRODUCT((Tableau1[Client]=$A13)*(Tableau1[Oppération]=Résultat!M$2)*(Tableau1[Surface])))*VLOOKUP(M$2,Tableau6[],2,0)),\" \")","v":" "},{"$f":"SUMPRODUCT((Tableau1[Client]=Tableau2[[#This Row],[Clients]])*(Tableau1[Oppération]=Résultat!N12)*(Tableau1[Surface]))","v":{"v":0,"d":"0.00 ha"}}]
[{"$f":"Base!AD13","v":0},{"$f":"SUMPRODUCT((Tableau1[Client]=Tableau2[[#This Row],[Clients]])*(Tableau1[Oppération]=Résultat!$B$2)*(Tableau1[Surface]))","v":{"v":0,"d":"0.00 ha"}},{"$f":"IF(C$2>0,((SUMPRODUCT((Tableau1[Client]=$A14)*(Tableau1[Oppération]=Résultat!C$2)*(Tableau1[Surface])))*VLOOKUP(C$2,Tableau6[],2,0)),\" \")","v":0},{"$f":"SUMPRODUCT((Tableau1[Client]=Tableau2[[#This Row],[Clients]])*(Tableau1[Oppération]=Résultat!$D$2)*(Tableau1[Surface]))","v":{"v":0,"d":"0.00 ha"}},{"$f":"IF(E$2>0,((SUMPRODUCT((Tableau1[Client]=$A14)*(Tableau1[Oppération]=Résultat!E$2)*(Tableau1[Surface])))*VLOOKUP(E$2,Tableau6[],2,0)),\" \")","v":0},{"$f":"SUMPRODUCT((Tableau1[Client]=Tableau2[[#This Row],[Clients]])*(Tableau1[Oppération]=Résultat!$F$2)*(Tableau1[Surface]))","v":{"v":0,"d":"0.00 ha"}},{"$f":"IF(G$2>0,((SUMPRODUCT((Tableau1[Client]=$A14)*(Tableau1[Oppération]=Résultat!G$2)*(Tableau1[Surface])))*VLOOKUP(G$2,Tableau6[],2,0)),\" \")","v":0},{"$f":"SUMPRODUCT((Tableau1[Client]=Tableau2[[#This Row],[Clients]])*(Tableau1[Oppération]=Résultat!$H$2)*(Tableau1[Surface]))","v":{"v":0,"d":"0.00 ha"}},{"$f":"IF(I$2>0,((SUMPRODUCT((Tableau1[Client]=$A14)*(Tableau1[Oppération]=Résultat!I$2)*(Tableau1[Surface])))*VLOOKUP(I$2,Tableau6[],2,0)),\" \")","v":0},{"$f":"SUMPRODUCT((Tableau1[Client]=Tableau2[[#This Row],[Clients]])*(Tableau1[Oppération]=Résultat!J13)*(Tableau1[Surface]))","v":{"v":0,"d":"0.00 ha"}},{"$f":"IF(K$2>0,((SUMPRODUCT((Tableau1[Client]=$A14)*(Tableau1[Oppération]=Résultat!K$2)*(Tableau1[Surface])))*VLOOKUP(K$2,Tableau6[],2,0)),\" \")","v":0},{"v":4,"d":"004.00"},{"$f":"IF(M$2>0,((SUMPRODUCT((Tableau1[Client]=$A14)*(Tableau1[Oppération]=Résultat!M$2)*(Tableau1[Surface])))*VLOOKUP(M$2,Tableau6[],2,0)),\" \")","v":" "},{"$f":"SUMPRODUCT((Tableau1[Client]=Tableau2[[#This Row],[Clients]])*(Tableau1[Oppération]=Résultat!N13)*(Tableau1[Surface]))","v":{"v":0,"d":"0.00 ha"}}]
[{"$f":"Base!AD14","v":0},{"$f":"SUMPRODUCT((Tableau1[Client]=Tableau2[[#This Row],[Clients]])*(Tableau1[Oppération]=Résultat!$B$2)*(Tableau1[Surface]))","v":{"v":0,"d":"0.00 ha"}},{"$f":"IF(C$2>0,((SUMPRODUCT((Tableau1[Client]=$A15)*(Tableau1[Oppération]=Résultat!C$2)*(Tableau1[Surface])))*VLOOKUP(C$2,Tableau6[],2,0)),\" \")","v":0},{"$f":"SUMPRODUCT((Tableau1[Client]=Tableau2[[#This Row],[Clients]])*(Tableau1[Oppération]=Résultat!$D$2)*(Tableau1[Surface]))","v":{"v":0,"d":"0.00 ha"}},{"$f":"IF(E$2>0,((SUMPRODUCT((Tableau1[Client]=$A15)*(Tableau1[Oppération]=Résultat!E$2)*(Tableau1[Surface])))*VLOOKUP(E$2,Tableau6[],2,0)),\" \")","v":0},{"$f":"SUMPRODUCT((Tableau1[Client]=Tableau2[[#This Row],[Clients]])*(Tableau1[Oppération]=Résultat!$F$2)*(Tableau1[Surface]))","v":{"v":0,"d":"0.00 ha"}},{"$f":"IF(G$2>0,((SUMPRODUCT((Tableau1[Client]=$A15)*(Tableau1[Oppération]=Résultat!G$2)*(Tableau1[Surface])))*VLOOKUP(G$2,Tableau6[],2,0)),\" \")","v":0},{"$f":"SUMPRODUCT((Tableau1[Client]=Tableau2[[#This Row],[Clients]])*(Tableau1[Oppération]=Résultat!$H$2)*(Tableau1[Surface]))","v":{"v":0,"d":"0.00 ha"}},{"$f":"IF(I$2>0,((SUMPRODUCT((Tableau1[Client]=$A15)*(Tableau1[Oppération]=Résultat!I$2)*(Tableau1[Surface])))*VLOOKUP(I$2,Tableau6[],2,0)),\" \")","v":0},{"$f":"SUMPRODUCT((Tableau1[Client]=Tableau2[[#This Row],[Clients]])*(Tableau1[Oppération]=Résultat!J14)*(Tableau1[Surface]))","v":{"v":0,"d":"0.00 ha"}},{"$f":"IF(K$2>0,((SUMPRODUCT((Tableau1[Client]=$A15)*(Tableau1[Oppération]=Résultat!K$2)*(Tableau1[Surface])))*VLOOKUP(K$2,Tableau6[],2,0)),\" \")","v":0},{"v":5,"d":"005.00"},{"$f":"IF(M$2>0,((SUMPRODUCT((Tableau1[Client]=$A15)*(Tableau1[Oppération]=Résultat!M$2)*(Tableau1[Surface])))*VLOOKUP(M$2,Tableau6[],2,0)),\" \")","v":" "},{"$f":"SUMPRODUCT((Tableau1[Client]=Tableau2[[#This Row],[Clients]])*(Tableau1[Oppération]=Résultat!N14)*(Tableau1[Surface]))","v":{"v":0,"d":"0.00 ha"}}]
[{"$f":"Base!AD15","v":0},{"$f":"SUMPRODUCT((Tableau1[Client]=Tableau2[[#This Row],[Clients]])*(Tableau1[Oppération]=Résultat!$B$2)*(Tableau1[Surface]))","v":{"v":0,"d":"0.00 ha"}},{"$f":"IF(C$2>0,((SUMPRODUCT((Tableau1[Client]=$A16)*(Tableau1[Oppération]=Résultat!C$2)*(Tableau1[Surface])))*VLOOKUP(C$2,Tableau6[],2,0)),\" \")","v":0},{"$f":"SUMPRODUCT((Tableau1[Client]=Tableau2[[#This Row],[Clients]])*(Tableau1[Oppération]=Résultat!$D$2)*(Tableau1[Surface]))","v":{"v":0,"d":"0.00 ha"}},{"$f":"IF(E$2>0,((SUMPRODUCT((Tableau1[Client]=$A16)*(Tableau1[Oppération]=Résultat!E$2)*(Tableau1[Surface])))*VLOOKUP(E$2,Tableau6[],2,0)),\" \")","v":0},{"$f":"SUMPRODUCT((Tableau1[Client]=Tableau2[[#This Row],[Clients]])*(Tableau1[Oppération]=Résultat!$F$2)*(Tableau1[Surface]))","v":{"v":0,"d":"0.00 ha"}},{"$f":"IF(G$2>0,((SUMPRODUCT((Tableau1[Client]=$A16)*(Tableau1[Oppération]=Résultat!G$2)*(Tableau1[Surface])))*VLOOKUP(G$2,Tableau6[],2,0)),\" \")","v":0},{"$f":"SUMPRODUCT((Tableau1[Client]=Tableau2[[#This Row],[Clients]])*(Tableau1[Oppération]=Résultat!$H$2)*(Tableau1[Surface]))","v":{"v":0,"d":"0.00 ha"}},{"$f":"IF(I$2>0,((SUMPRODUCT((Tableau1[Client]=$A16)*(Tableau1[Oppération]=Résultat!I$2)*(Tableau1[Surface])))*VLOOKUP(I$2,Tableau6[],2,0)),\" \")","v":0},{"$f":"SUMPRODUCT((Tableau1[Client]=Tableau2[[#This Row],[Clients]])*(Tableau1[Oppération]=Résultat!J15)*(Tableau1[Surface]))","v":{"v":0,"d":"0.00 ha"}},{"$f":"IF(K$2>0,((SUMPRODUCT((Tableau1[Client]=$A16)*(Tableau1[Oppération]=Résultat!K$2)*(Tableau1[Surface])))*VLOOKUP(K$2,Tableau6[],2,0)),\" \")","v":0},{"v":6,"d":"006.00"},{"$f":"IF(M$2>0,((SUMPRODUCT((Tableau1[Client]=$A16)*(Tableau1[Oppération]=Résultat!M$2)*(Tableau1[Surface])))*VLOOKUP(M$2,Tableau6[],2,0)),\" \")","v":" "},{"$f":"SUMPRODUCT((Tableau1[Client]=Tableau2[[#This Row],[Clients]])*(Tableau1[Oppération]=Résultat!N15)*(Tableau1[Surface]))","v":{"v":0,"d":"0.00 ha"}}]
[{"$f":"Base!AD16","v":0},{"$f":"SUMPRODUCT((Tableau1[Client]=Tableau2[[#This Row],[Clients]])*(Tableau1[Oppération]=Résultat!$B$2)*(Tableau1[Surface]))","v":{"v":0,"d":"0.00 ha"}},{"$f":"IF(C$2>0,((SUMPRODUCT((Tableau1[Client]=$A17)*(Tableau1[Oppération]=Résultat!C$2)*(Tableau1[Surface])))*VLOOKUP(C$2,Tableau6[],2,0)),\" \")","v":0},{"$f":"SUMPRODUCT((Tableau1[Client]=Tableau2[[#This Row],[Clients]])*(Tableau1[Oppération]=Résultat!$D$2)*(Tableau1[Surface]))","v":{"v":0,"d":"0.00 ha"}},{"$f":"IF(E$2>0,((SUMPRODUCT((Tableau1[Client]=$A17)*(Tableau1[Oppération]=Résultat!E$2)*(Tableau1[Surface])))*VLOOKUP(E$2,Tableau6[],2,0)),\" \")","v":0},{"$f":"SUMPRODUCT((Tableau1[Client]=Tableau2[[#This Row],[Clients]])*(Tableau1[Oppération]=Résultat!$F$2)*(Tableau1[Surface]))","v":{"v":0,"d":"0.00 ha"}},{"$f":"IF(G$2>0,((SUMPRODUCT((Tableau1[Client]=$A17)*(Tableau1[Oppération]=Résultat!G$2)*(Tableau1[Surface])))*VLOOKUP(G$2,Tableau6[],2,0)),\" \")","v":0},{"$f":"SUMPRODUCT((Tableau1[Client]=Tableau2[[#This Row],[Clients]])*(Tableau1[Oppération]=Résultat!$H$2)*(Tableau1[Surface]))","v":{"v":0,"d":"0.00 ha"}},{"$f":"IF(I$2>0,((SUMPRODUCT((Tableau1[Client]=$A17)*(Tableau1[Oppération]=Résultat!I$2)*(Tableau1[Surface])))*VLOOKUP(I$2,Tableau6[],2,0)),\" \")","v":0},{"$f":"SUMPRODUCT((Tableau1[Client]=Tableau2[[#This Row],[Clients]])*(Tableau1[Oppération]=Résultat!J16)*(Tableau1[Surface]))","v":{"v":0,"d":"0.00 ha"}},{"$f":"IF(K$2>0,((SUMPRODUCT((Tableau1[Client]=$A17)*(Tableau1[Oppération]=Résultat!K$2)*(Tableau1[Surface])))*VLOOKUP(K$2,Tableau6[],2,0)),\" \")","v":0},{"v":7,"d":"007.00"},{"$f":"IF(M$2>0,((SUMPRODUCT((Tableau1[Client]=$A17)*(Tableau1[Oppération]=Résultat!M$2)*(Tableau1[Surface])))*VLOOKUP(M$2,Tableau6[],2,0)),\" \")","v":" "},{"$f":"SUMPRODUCT((Tableau1[Client]=Tableau2[[#This Row],[Clients]])*(Tableau1[Oppération]=Résultat!N16)*(Tableau1[Surface]))","v":{"v":0,"d":"0.00 ha"}}]
[{"$f":"Base!AD17","v":0},{"$f":"SUMPRODUCT((Tableau1[Client]=Tableau2[[#This Row],[Clients]])*(Tableau1[Oppération]=Résultat!$B$2)*(Tableau1[Surface]))","v":{"v":0,"d":"0.00 ha"}},{"$f":"IF(C$2>0,((SUMPRODUCT((Tableau1[Client]=$A18)*(Tableau1[Oppération]=Résultat!C$2)*(Tableau1[Surface])))*VLOOKUP(C$2,Tableau6[],2,0)),\" \")","v":0},{"$f":"SUMPRODUCT((Tableau1[Client]=Tableau2[[#This Row],[Clients]])*(Tableau1[Oppération]=Résultat!$D$2)*(Tableau1[Surface]))","v":{"v":0,"d":"0.00 ha"}},{"$f":"IF(E$2>0,((SUMPRODUCT((Tableau1[Client]=$A18)*(Tableau1[Oppération]=Résultat!E$2)*(Tableau1[Surface])))*VLOOKUP(E$2,Tableau6[],2,0)),\" \")","v":0},{"$f":"SUMPRODUCT((Tableau1[Client]=Tableau2[[#This Row],[Clients]])*(Tableau1[Oppération]=Résultat!$F$2)*(Tableau1[Surface]))","v":{"v":0,"d":"0.00 ha"}},{"$f":"IF(G$2>0,((SUMPRODUCT((Tableau1[Client]=$A18)*(Tableau1[Oppération]=Résultat!G$2)*(Tableau1[Surface])))*VLOOKUP(G$2,Tableau6[],2,0)),\" \")","v":0},{"$f":"SUMPRODUCT((Tableau1[Client]=Tableau2[[#This Row],[Clients]])*(Tableau1[Oppération]=Résultat!$H$2)*(Tableau1[Surface]))","v":{"v":0,"d":"0.00 ha"}},{"$f":"IF(I$2>0,((SUMPRODUCT((Tableau1[Client]=$A18)*(Tableau1[Oppération]=Résultat!I$2)*(Tableau1[Surface])))*VLOOKUP(I$2,Tableau6[],2,0)),\" \")","v":0},{"$f":"SUMPRODUCT((Tableau1[Client]=Tableau2[[#This Row],[Clients]])*(Tableau1[Oppération]=Résultat!J17)*(Tableau1[Surface]))","v":{"v":0,"d":"0.00 ha"}},{"$f":"IF(K$2>0,((SUMPRODUCT((Tableau1[Client]=$A18)*(Tableau1[Oppération]=Résultat!K$2)*(Tableau1[Surface])))*VLOOKUP(K$2,Tableau6[],2,0)),\" \")","v":0},{"v":8,"d":"008.00"},{"$f":"IF(M$2>0,((SUMPRODUCT((Tableau1[Client]=$A18)*(Tableau1[Oppération]=Résultat!M$2)*(Tableau1[Surface])))*VLOOKUP(M$2,Tableau6[],2,0)),\" \")","v":" "},{"$f":"SUMPRODUCT((Tableau1[Client]=Tableau2[[#This Row],[Clients]])*(Tableau1[Oppération]=Résultat!N17)*(Tableau1[Surface]))","v":{"v":0,"d":"0.00 ha"}}]
[{"$f":"Base!AD18","v":0},{"$f":"SUMPRODUCT((Tableau1[Client]=Tableau2[[#This Row],[Clients]])*(Tableau1[Oppération]=Résultat!$B$2)*(Tableau1[Surface]))","v":{"v":0,"d":"0.00 ha"}},{"$f":"IF(C$2>0,((SUMPRODUCT((Tableau1[Client]=$A19)*(Tableau1[Oppération]=Résultat!C$2)*(Tableau1[Surface])))*VLOOKUP(C$2,Tableau6[],2,0)),\" \")","v":0},{"$f":"SUMPRODUCT((Tableau1[Client]=Tableau2[[#This Row],[Clients]])*(Tableau1[Oppération]=Résultat!$D$2)*(Tableau1[Surface]))","v":{"v":0,"d":"0.00 ha"}},{"$f":"IF(E$2>0,((SUMPRODUCT((Tableau1[Client]=$A19)*(Tableau1[Oppération]=Résultat!E$2)*(Tableau1[Surface])))*VLOOKUP(E$2,Tableau6[],2,0)),\" \")","v":0},{"$f":"SUMPRODUCT((Tableau1[Client]=Tableau2[[#This Row],[Clients]])*(Tableau1[Oppération]=Résultat!$F$2)*(Tableau1[Surface]))","v":{"v":0,"d":"0.00 ha"}},{"$f":"IF(G$2>0,((SUMPRODUCT((Tableau1[Client]=$A19)*(Tableau1[Oppération]=Résultat!G$2)*(Tableau1[Surface])))*VLOOKUP(G$2,Tableau6[],2,0)),\" \")","v":0},{"$f":"SUMPRODUCT((Tableau1[Client]=Tableau2[[#This Row],[Clients]])*(Tableau1[Oppération]=Résultat!$H$2)*(Tableau1[Surface]))","v":{"v":0,"d":"0.00 ha"}},{"$f":"IF(I$2>0,((SUMPRODUCT((Tableau1[Client]=$A19)*(Tableau1[Oppération]=Résultat!I$2)*(Tableau1[Surface])))*VLOOKUP(I$2,Tableau6[],2,0)),\" \")","v":0},{"$f":"SUMPRODUCT((Tableau1[Client]=Tableau2[[#This Row],[Clients]])*(Tableau1[Oppération]=Résultat!J18)*(Tableau1[Surface]))","v":{"v":0,"d":"0.00 ha"}},{"$f":"IF(K$2>0,((SUMPRODUCT((Tableau1[Client]=$A19)*(Tableau1[Oppération]=Résultat!K$2)*(Tableau1[Surface])))*VLOOKUP(K$2,Tableau6[],2,0)),\" \")","v":0},{"v":9,"d":"009.00"},{"$f":"IF(M$2>0,((SUMPRODUCT((Tableau1[Client]=$A19)*(Tableau1[Oppération]=Résultat!M$2)*(Tableau1[Surface])))*VLOOKUP(M$2,Tableau6[],2,0)),\" \")","v":" "},{"$f":"SUMPRODUCT((Tableau1[Client]=Tableau2[[#This Row],[Clients]])*(Tableau1[Oppération]=Résultat!N18)*(Tableau1[Surface]))","v":{"v":0,"d":"0.00 ha"}}]
[{"$f":"Base!AD19","v":0},{"$f":"SUMPRODUCT((Tableau1[Client]=Tableau2[[#This Row],[Clients]])*(Tableau1[Oppération]=Résultat!$B$2)*(Tableau1[Surface]))","v":{"v":0,"d":"0.00 ha"}},{"$f":"IF(C$2>0,((SUMPRODUCT((Tableau1[Client]=$A20)*(Tableau1[Oppération]=Résultat!C$2)*(Tableau1[Surface])))*VLOOKUP(C$2,Tableau6[],2,0)),\" \")","v":0},{"$f":"SUMPRODUCT((Tableau1[Client]=Tableau2[[#This Row],[Clients]])*(Tableau1[Oppération]=Résultat!$D$2)*(Tableau1[Surface]))","v":{"v":0,"d":"0.00 ha"}},{"$f":"IF(E$2>0,((SUMPRODUCT((Tableau1[Client]=$A20)*(Tableau1[Oppération]=Résultat!E$2)*(Tableau1[Surface])))*VLOOKUP(E$2,Tableau6[],2,0)),\" \")","v":0},{"$f":"SUMPRODUCT((Tableau1[Client]=Tableau2[[#This Row],[Clients]])*(Tableau1[Oppération]=Résultat!$F$2)*(Tableau1[Surface]))","v":{"v":0,"d":"0.00 ha"}},{"$f":"IF(G$2>0,((SUMPRODUCT((Tableau1[Client]=$A20)*(Tableau1[Oppération]=Résultat!G$2)*(Tableau1[Surface])))*VLOOKUP(G$2,Tableau6[],2,0)),\" \")","v":0},{"$f":"SUMPRODUCT((Tableau1[Client]=Tableau2[[#This Row],[Clients]])*(Tableau1[Oppération]=Résultat!$H$2)*(Tableau1[Surface]))","v":{"v":0,"d":"0.00 ha"}},{"$f":"IF(I$2>0,((SUMPRODUCT((Tableau1[Client]=$A20)*(Tableau1[Oppération]=Résultat!I$2)*(Tableau1[Surface])))*VLOOKUP(I$2,Tableau6[],2,0)),\" \")","v":0},{"$f":"SUMPRODUCT((Tableau1[Client]=Tableau2[[#This Row],[Clients]])*(Tableau1[Oppération]=Résultat!J19)*(Tableau1[Surface]))","v":{"v":0,"d":"0.00 ha"}},{"$f":"IF(K$2>0,((SUMPRODUCT((Tableau1[Client]=$A20)*(Tableau1[Oppération]=Résultat!K$2)*(Tableau1[Surface])))*VLOOKUP(K$2,Tableau6[],2,0)),\" \")","v":0},{"v":10,"d":"010.00"},{"$f":"IF(M$2>0,((SUMPRODUCT((Tableau1[Client]=$A20)*(Tableau1[Oppération]=Résultat!M$2)*(Tableau1[Surface])))*VLOOKUP(M$2,Tableau6[],2,0)),\" \")","v":" "},{"$f":"SUMPRODUCT((Tableau1[Client]=Tableau2[[#This Row],[Clients]])*(Tableau1[Oppération]=Résultat!N19)*(Tableau1[Surface]))","v":{"v":0,"d":"0.00 ha"}}]
[null,{"$f":"SUBTOTAL(109,Tableau2[Colonne1])","v":{"v":16.7,"d":"16.70 ha"}},{"$f":"SUBTOTAL(109,Tableau2[Colonne8])","v":{"v":1503,"d":"1,503.00 €"}},{"$f":"SUBTOTAL(109,Tableau2[Colonne3])","v":{"v":121.35,"d":"121.35 ha"}},{"$f":"SUBTOTAL(109,Tableau2[Colonne9])","v":{"v":1820.25,"d":"1,820.25 €"}},{"$f":"SUBTOTAL(109,Tableau2[Colonne2])","v":{"v":68.2,"d":"68.20 ha"}},{"$f":"SUBTOTAL(109,Tableau2[Colonne10])","v":{"v":6206.200000000001,"d":"6,206.20 €"}},{"$f":"SUBTOTAL(109,Tableau2[Colonne4])","v":{"v":55,"d":"55.00 ha"}},{"$f":"SUBTOTAL(109,Tableau2[Colonne11])","v":{"v":825,"d":"825.00 €"}},{"$f":"SUBTOTAL(109,Tableau2[Colonne5])","v":{"v":0,"d":"0.00 ha"}},{"$f":"SUBTOTAL(109,Tableau2[Colonne12])","v":0},"000,00",{"$f":"SUBTOTAL(109,Tableau2[Colonne13])","v":0},{"$f":"SUBTOTAL(109,Tableau2[Colonne7])","v":{"v":0,"d":"0.00 ha"}},{"$f":"SUBTOTAL(109,Tableau2[Colonne14])","v":0}]

{"sheet":"Impression","index":3,"n_rows":49,"n_cols":28,"rows_kept":49,"merged":[[0,0,1,6],[0,15,1,22],[3,5,3,6],[3,20,3,22],[4,5,4,6],[4,20,4,22],[5,5,5,6],[5,20,5,22],[6,15,6,16],[6,21,6,22]]}
["Albouy Jérome",{"$nulls":14},"Durand Jérome",{"$nulls":10},"Culture","Surface"]
[{"$nulls":9},"Client","Campagne",{"$nulls":15},"Blé",{"$f":"IF(AA2>0,SUMIF($R$15:$R$30,AA2,$Q$15:$Q$30),\" \")","v":5.35}]
[{"$nulls":9},"Florian","2013/2014",{"$nulls":15},"Tournesol",31.35]
[{"$nulls":5},"Client",{"$nulls":14},"Client",{"$nulls":5},"Maïs",55]
["Campagne",{"$f":"$K$3","v":"2013/2014"},{"$nulls":3},{"$f":"VLOOKUP($J$3,Tableau3[],1,0)","v":"Florian"},{"$nulls":9},"Campagne",{"$f":"$K$3","v":"2013/2014"},{"$nulls":3},{"$f":"VLOOKUP($J$3,Tableau3[],1,0)","v":"Florian"},{"$nulls":6}," "]
[{"$nulls":5},{"$f":"VLOOKUP($J$3,Tableau3[],2,0)","v":"Le Bouscas"},{"$nulls":14},{"$f":"VLOOKUP($J$3,Tableau3[],2,0)","v":"Le Bouscas"},{"$nulls":6}," "]
[{"$nulls":5},{"$f":"VLOOKUP($J$3,Tableau3[],3,0)","v":81600},{"$f":"VLOOKUP($J$3,Tableau3[],4,0)","v":"Cadalen"},{"$nulls":8},"Assolement",{"$nulls":4},{"$f":"VLOOKUP($J$3,Tableau3[],3,0)","v":81600},{"$f":"VLOOKUP($J$3,Tableau3[],4,0)","v":"Cadalen"},{"$nulls":5}," "]
[{"$nulls":27}," "]
[{"$nulls":7},"",{"$nulls":14},"",{"$nulls":4},{"$f":"IF(AA9>0,SUMIF($R$15:$R$30,AA9,$Q$15:$Q$30),\" \")","v":" "}]
["Date","Oppération","Parcelle","Culture","Surface","Produit","Observation",{"$nulls":20},{"$f":"IF(AA10>0,SUMIF($R$15:$R$30,AA10,$Q$15:$Q$30),\" \")","v":" "}]
["15/12/2014","Moisson","Sous la route","Blé",{"v":5.35,"d":"5.35 ha"},"Urée 46%",{"$nulls":21},{"$f":"IF(AA11>0,SUMIF($R$15:$R$30,AA11,$Q$15:$Q$30),\" \")","v":" "}]
["16/12/2014","Pulvérisation","La plaine","Tournesol",{"v":20.5,"d":"20.50 ha"}]
["17/12/2014","Labour","Coteau","Tournesol",{"v":8.35,"d":"8.35 ha"}]
["15/12/2014","Moisson","Devant la maison","Tournesol",{"v":2.5,"d":"2.50 ha"},"Axial",{"$nulls":9},"Parcelles","Surface","Culture"]
["15/12/2014","Labour","Coteau","Tournesol",{"v":8.35,"d":"8.35 ha"},{"$nulls":10},"Coteau",{"$f":"IF(P15>0,VLOOKUP(P15,Tableau7[[#All],[Parcelles]:[Campagne]],2,0),\" \")","v":{"v":8.35,"d":"8.35 ha"}},{"$f":"IF(P15>0,VLOOKUP(P15,Tableau7[[#All],[Parcelles]:[Campagne]],3,0),\" \")","v":"Tournesol"}]
["17/12/2014","Moisson","sgdsfd","Maïs",{"v":55,"d":"55.00 ha"},"Urée 46%",{"$nulls":9},"Devant la maison",{"$f":"IF(P16>0,VLOOKUP(P16,Tableau7[[#All],[Parcelles]:[Campagne]],2,0),\" \")","v":{"v":2.5,"d":"2.50 ha"}},{"$f":"IF(P16>0,VLOOKUP(P16,Tableau7[[#All],[Parcelles]:[Campagne]],3,0),\" \")","v":"Tournesol"}]
[{"$nulls":15},"La plaine",{"$f":"IF(P17>0,VLOOKUP(P17,Tableau7[[#All],[Parcelles]:[Campagne]],2,0),\" \")","v":{"v":20.5,"d":"20.50 ha"}},{"$f":"IF(P17>0,VLOOKUP(P17,Tableau7[[#All],[Parcelles]:[Campagne]],3,0),\" \")","v":"Tournesol"}]
[{"$nulls":15},"sgdsfd",{"$f":"IF(P18>0,VLOOKUP(P18,Tableau7[[#All],[Parcelles]:[Campagne]],2,0),\" \")","v":{"v":55,"d":"55.00 ha"}},{"$f":"IF(P18>0,VLOOKUP(P18,Tableau7[[#All],[Parcelles]:[Campagne]],3,0),\" \")","v":"Maïs"}]
[{"$nulls":7},{"$f":"IF(B19>0,(VLOOKUP(B19,Tableau6[],2,0)),\" \")","v":" "},{"$nulls":7},"Sous la route",{"$f":"IF(P19>0,VLOOKUP(P19,Tableau7[[#All],[Parcelles]:[Campagne]],2,0),\" \")","v":{"v":5.35,"d":"5.35 ha"}},{"$f":"IF(P19>0,VLOOKUP(P19,Tableau7[[#All],[Parcelles]:[Campagne]],3,0),\" \")","v":"Blé"}]
[{"$nulls":7},{"$f":"IF(B20>0,(VLOOKUP(B20,Tableau6[],2,0)),\" \")","v":" "},{"$nulls":8},{"$f":"IF(P20>0,VLOOKUP(P20,Tableau7[[#All],[Parcelles]:[Campagne]],2,0),\" \")","v":" "},{"$f":"IF(P20>0,VLOOKUP(P20,Tableau7[[#All],[Parcelles]:[Campagne]],3,0),\" \")","v":" "}]
[{"$nulls":7},{"$f":"IF(B21>0,(VLOOKUP(B21,Tableau6[],2,0)),\" \")","v":" "}]
[{"$nulls":7},{"$f":"IF(B22>0,(VLOOKUP(B22,Tableau6[],2,0)),\" \")","v":" "}]
[{"$nulls":7},{"$f":"IF(B23>0,(VLOOKUP(B23,Tableau6[],2,0)),\" \")","v":" "}]
[{"$nulls":7},{"$f":"IF(B24>0,(VLOOKUP(B24,Tableau6[],2,0)),\" \")","v":" "}]
[{"$nulls":7},{"$f":"IF(B25>0,(VLOOKUP(B25,Tableau6[],2,0)),\" \")","v":" "}]
[{"$nulls":7},{"$f":"IF(B26>0,(VLOOKUP(B26,Tableau6[],2,0)),\" \")","v":" "}]
[{"$nulls":7},{"$f":"IF(B27>0,(VLOOKUP(B27,Tableau6[],2,0)),\" \")","v":" "}]
[{"$nulls":7},{"$f":"IF(B28>0,(VLOOKUP(B28,Tableau6[],2,0)),\" \")","v":" "}]
[{"$nulls":7},{"$f":"IF(B29>0,(VLOOKUP(B29,Tableau6[],2,0)),\" \")","v":" "}]
[{"$nulls":7},{"$f":"IF(B30>0,(VLOOKUP(B30,Tableau6[],2,0)),\" \")","v":" "}]
[{"$nulls":7},{"$f":"IF(B31>0,(VLOOKUP(B31,Tableau6[],2,0)),\" \")","v":" "}]
[{"$nulls":7},{"$f":"IF(B32>0,(VLOOKUP(B32,Tableau6[],2,0)),\" \")","v":" "}]
[{"$nulls":7},{"$f":"IF(B33>0,(VLOOKUP(B33,Tableau6[],2,0)),\" \")","v":" "}]
[{"$nulls":7},{"$f":"IF(B34>0,(VLOOKUP(B34,Tableau6[],2,0)),\" \")","v":" "}]
["Oppération","Surface","Prix / ha","Cout"]
["Labour",{"$f":"IF(A36>0,SUMIF($B$11:$B$33,A36,$E$11:$E$33),\" \")","v":{"v":16.7,"d":"16.70 ha"}},{"$f":"IF(A36>0,VLOOKUP(A36,Tableau6[],2,0),\" \")","v":{"v":90,"d":"90.00 €"}},{"$f":"IF(A36>0,(B36*C36),\" \")","v":{"v":1503,"d":"1,503.00 €"}}]
["Moisson",{"$f":"IF(A37>0,SUMIF($B$11:$B$33,A37,$E$11:$E$33),\" \")","v":{"v":62.85,"d":"62.85 ha"}},{"$f":"IF(A37>0,VLOOKUP(A37,Tableau6[],2,0),\" \")","v":{"v":91,"d":"91.00 €"}},{"$f":"IF(A37>0,(B37*C37),\" \")","v":{"v":5719.35,"d":"5,719.35 €"}}]
["Pulvérisation",{"v":20.5,"d":"20.50 ha"},{"$f":"IF(A38>0,VLOOKUP(A38,Tableau6[],2,0),\" \")","v":{"v":15,"d":"15.00 €"}},{"v":307.5,"d":"307.50 €"}]
[null," ",{"$f":"IF(A39>0,VLOOKUP(A39,Tableau6[],2,0),\" \")","v":" "}," "]
[null," ",{"$f":"IF(A40>0,VLOOKUP(A40,Tableau6[],2,0),\" \")","v":" "}," "]
[null," ",{"$f":"IF(A41>0,VLOOKUP(A41,Tableau6[],2,0),\" \")","v":" "}," "]
[null," ",{"$f":"IF(A42>0,VLOOKUP(A42,Tableau6[],2,0),\" \")","v":" "}," "]
[null," ",{"$f":"IF(A43>0,VLOOKUP(A43,Tableau6[],2,0),\" \")","v":" "}," "]
[null," ",{"$f":"IF(A44>0,VLOOKUP(A44,Tableau6[],2,0),\" \")","v":" "}," "]
[null," ",{"$f":"IF(A45>0,VLOOKUP(A45,Tableau6[],2,0),\" \")","v":" "}," "]
[null," ",{"$f":"IF(A46>0,VLOOKUP(A46,Tableau6[],2,0),\" \")","v":" "}," "]
[null," ",{"$f":"IF(A47>0,VLOOKUP(A47,Tableau6[],2,0),\" \")","v":" "}," "]
[null," ",{"$f":"IF(A48>0,VLOOKUP(A48,Tableau6[],2,0),\" \")","v":" "}," "]
[null," ",{"$f":"IF(A49>0,VLOOKUP(A49,Tableau6[],2,0),\" \")","v":" "}," "]